Cogmind - Beta 13 @@@ ROGUE MODE // 2024.04.28 @ 11:16:36 Player: MiNathan Result: Destroyed by G-50 Soldier with Heavy Laser Performance ------------- Evolutions (2) 1000 Regions Visited (5) 1000 Robots Destroyed (47) 235 Value Destroyed (1112) 1112 Prototype IDs (26) 520 Alien Tech Used (0) 0 Bonus (240) 240 TOTAL SCORE: 4107 Bonus ------- High Alert Combat Kills 4 Follower Combat Kills 67 Aligned with FarCom 300 Friendly Fire -131 Cogmind --------- Core Integrity 0/550 Matter 300/300 Energy 100/100 System Corruption 3% Temperature Cool (9) Movement Core (50) Location -8/Materials Parts ------- > --- POWER (2) -------- (None) > --- PROPULSION (2) --- (None) > --- UTILITY (5) ------ Modified TNC > --- WEAPON (2) ------- (None) > --- INVENTORY (5) ---- (None) Peak State ------------ > --- POWER ------------ Nuclear Core > --- PROPULSION ------- Improved Aluminum Leg Potential Leg > --- UTILITY ---------- Modified TNC Cloak of Protection > --- WEAPON ----------- Ion Cannon Maul > --- INVENTORY -------- Improved Aluminum Leg Sensor Array Core Shielding Hacking Suite [Rating: 34] Favorites ----------- Power Ion Engine Engine Ion Engine Power Core Nuclear Core Propulsion Improved Aluminum Leg Treads Light Treads Leg Improved Aluminum Leg Wheel Wheel Utility Signal Interpreter Device Cloak of Protection Processor Signal Interpreter Hackware Hacking Suite Protection Core Shielding Weapon Maul Energy Gun Small Laser Energy Cannon Ion Cannon Ballistic Gun Light Assault Rifle Ballistic Cannon Light Cannon Launcher Grenade Launcher Impact Weapon Maul Special Melee Weapon Datajack Build | -11 -10 -10 -10 -9 -8 ------- Run | Yrd Mat Min Exi Min Mat Slots Evolved 4 | . . . . . 4 Power 1 | . . . . . 1 Propulsion . | . . . . . . Utility 3 | . . . . . 3 Weapon . | . . . . . . Parts Attached 34 | 7 14 4 4 . 5 Power 4 | 1 1 1 . . 1 Engine 2 | 1 1 . . . . Core 2 | . . 1 . . 1 Reactor . | . . . . . . Propulsion 12 | 4 6 . 2 . . Treads 4 | 2 2 . . . . Leg 6 | . 4 . 2 . . Wheel 2 | 2 . . . . . Hover . | . . . . . . Flight . | . . . . . . Utility 9 | . 3 . 2 . 4 Device 3 | . 1 . 1 . 1 Storage . | . . . . . . Processor 2 | . 1 . 1 . . Hackware 3 | . 1 . . . 2 Protection 1 | . . . . . 1 Artifact . | . . . . . . Weapon 9 | 2 4 3 . . . Energy Gun 1 | . . 1 . . . Energy Cannon 1 | . . 1 . . . Ballistic Gun 2 | 2 . . . . . Ballistic Cannon 1 | . 1 . . . . Launcher 1 | . 1 . . . . Special Weapon . | . . . . . . Impact Weapon 2 | . 2 . . . . Slashing Weapon . | . . . . . . Piercing Weapon . | . . . . . . Special Melee Weapon 1 | . . 1 . . . Unidentified Prototypes 3 | . . . 3 . . Parts Lost 14 | . 1 3 . . 10 Power 4 | . 1 1 . . 2 Propulsion 2 | . . . . . 2 Utility 5 | . . 1 . . 4 Weapon 3 | . . 1 . . 2 Highest Loss Streak 9 | . 1 1 . . 9 To Critical Strikes . | . . . . . . Average Slot Usage (%) 91 | . 91 93 91 100 76 Engine 6 | . 13 8 . . . Core 5 | . . 2 14 14 8 Treads 7 | . 19 . . . . Leg 19 | . 8 28 28 28 16 Device 7 | . . 11 6 14 8 Processor 12 | . 11 14 14 14 9 Hackware 4 | . 8 . . . 9 Protection 1 | . . . . . 8 Energy Cannon 5 | . . 2 14 14 8 Ballistic Gun 3 | . 9 . . . . Ballistic Cannon 3 | . 9 . . . . Launcher 2 | . 2 5 . . . Impact Weapon 10 | . 6 14 14 14 8 Naked Turns . | . . . . . . Heaviest Build 26 | 8 12 17 24 24 26 Greatest Support 40 | 40 40 26 26 26 26 Greatest Overweight (x) 1 | . . . . . 1 Average Overweight (x) . | . . . . . . Largest Inventory Capacity 5 | 5 5 5 5 5 5 Average Capacity 5 | 5 5 5 5 5 5 Most Carried 5 | 4 4 5 5 3 2 Average Carried 1 | . . 2 3 3 . Final Capacity 5 | 5 5 5 5 5 5 Final Carried 3 | . 2 3 3 3 . Class Distribution -------------------- 98% | Mutant Dominant Class ---------------- Mutant | -10/Materials Mutant | -10/Mines Mutant | -10/Exiles Mutant | -9/Mines Mutant | -8/Materials Resources | -11 -10 -10 -10 -9 -8 ----------- Run | Yrd Mat Min Exi Min Mat Matter Collected 1108 | 224 536 261 . 27 60 Remotely . | . . . . . . Salvage Created 1170 | . 670 226 . . 274 Parts 66 | . 41 16 . . 9 Haulers Intercepted 2 | . 2 . . . . Recyclers Shooed 3 | . 2 . . . 1 Parts Field Recycled . | . . . . . . Retrieved Matter . | . . . . . . Parts Self-Destructed . | . . . . . . Prevented . | . . . . . . Kills | -11 -10 -10 -10 -9 -8 ------- Run | Yrd Mat Min Exi Min Mat Combat Hostiles Destroyed 30 | . 13 12 . . 5 Melee 2 | . . 1 . . 1 Guns 5 | . 5 . . . . Cannons 10 | . 7 1 . . 2 AOE 11 | . 1 10 . . . Classes Destroyed 10 | . 8 1 . . 1 Worker 1 | . 1 . . . . Builder 4 | . 3 1 . . . Tunneler 2 | . . 2 . . . Hauler 2 | . 2 . . . . Recycler 2 | . 2 . . . . Operator 2 | . 2 . . . . Watcher 4 | . 3 . . . 1 Swarmer 9 | . 4 5 . . . Grunt 20 | . 9 7 . . 4 Sentry 1 | . . . . . 1 Best Kill Streak 6 | . 6 3 . . 3 Combat Bots Only 4 | . 4 3 . . 3 Max Kills in Single Turn 2 | . 2 2 . . 1 Gunslinging . | . . . . . . Exploded 2 | . 1 2 . . . Melee 1 | . . 1 . . 1 Uniques/NPCs Destroyed . | . . . . . . Combat | -11 -10 -10 -10 -9 -8 -------- Run | Yrd Mat Min Exi Min Mat Hostile Shots Fired 232 | . 76 45 . . 111 Missed 83 | . 37 19 . . 27 Damage Taken 2252 | . 521 348 . . 1383 Core 719 | . 135 29 . . 555 Absorbed by Shields . | . . . . . . Redirected to Shielding 52 | . . . . . 52 Core Remaining (%) 67 | 100 . . . 34 . Volleys Fired 137 | . 89 22 . . 26 Largest 2 | . 2 1 . . 1 Hottest 60 | . 55 60 . . 60 Shots Fired 179 | . 131 22 . . 26 Gun 70 | . 70 . . . . Cannon 88 | . 54 8 . . 26 Launcher 21 | . 7 14 . . . Special . | . . . . . . Kinetic 124 | . 124 . . . . Thermal 34 | . . 8 . . 26 Explosive 21 | . 7 14 . . . Electromagnetic . | . . . . . . Robot Hit Streak 11 | . 9 11 . . 5 Robot Miss Streak 6 | . 5 2 . . 6 Penetration Max . | . . . . . . Secondary Targets . | . . . . . . Shots Hit Robots 119 | . 74 19 . . 26 Core Hits 72 | . 35 25 . . 12 Critical Kills 1 | . . 1 . . . Critical Parts Destroyed 4 | . . . . . 4 Critical Strikes 6 | . 1 1 . . 4 Blast 1 | . 1 . . . . Smash 5 | . . 1 . . 4 Melee Attacks 30 | . 7 12 . . 11 Impact 28 | . 7 10 . . 11 Slashing . | . . . . . . Piercing . | . . . . . . Sneak Attacks 5 | . 3 2 . . . Combat Hostiles . | . . . . . . Follow-up Attacks . | . . . . . . Damage Inflicted 3665 | . 1636 1148 . 14 867 Guns 391 | . 391 . . . . Cannons 1090 | . 601 119 . . 370 Explosions 1100 | . 381 719 . . . Melee 1011 | . 263 310 . . 438 Ramming 73 | . . . . 14 59 Kinetic 992 | . 992 . . . . Thermal 489 | . . 119 . . 370 Explosive 1097 | . 378 719 . . . Electromagnetic 3 | . 3 . . . . Impact 1011 | . 263 310 . . 438 Slashing . | . . . . . . Piercing . | . . . . . . Highest Corruption 3 | . 1 1 1 1 3 Average Corruption 1 | . 1 1 1 1 1 Corruption Purged . | . . . . . . Corruption Blocked . | . . . . . . Effects 18 | . 2 8 2 6 . Message Errors 2 | . . 1 . 1 . Matter Fused 9 | . 1 5 1 2 . Heat Flow Errors 3 | . 1 1 1 . . Energy Discharges 2 | . . . . 2 . Data Loss (minor) 1 | . . . . 1 . Alerts 1 | . . 1 . . . Overload Shots . | . . . . . . Overflow Damage 540 | . 195 186 . . 159 Projectiles 15 | . 15 . . . . Explosions 20 | . 17 3 . . . Melee 505 | . 163 183 . . 159 Knockbacks 17 | . 10 2 . . 5 Impact 6 | . . 2 . . 4 Kinetic 10 | . 10 . . . . Secondary 1 | . . . . . 1 Self-Inflicted Damage 161 | . 68 68 . . 25 Shots 6 | . 2 4 . . . Rammed 21 | . . . . . 21 Targets Rammed 23 | . . . . 2 21 Kicked 2 | . . . . 2 . Crushed . | . . . . . . Highest Temperature 229 | . 227 216 129 . 229 Average Temperature 69 | . 27 105 71 . 88 Received Heat Transfer 1125 | . 192 123 . . 810 Siege Activations . | . . . . . . Robots Corrupted . | . . . . . . Combat Hostiles . | . . . . . . Parts Fried 7 | . 5 2 . . . Impact Corruptions 20 | . 7 7 . . 6 Robots Melted . | . . . . . . Combat Hostiles . | . . . . . . Parts Melted . | . . . . . . Heat Transferred 777 | . . 185 . . 592 Parts Sabotaged . | . . . . . . Parts Stolen . | . . . . . . Parts Stripped . | . . . . . . Power Chain Reactions 1 | . 1 . . . . Alert | -11 -10 -10 -10 -9 -8 ------- Run | Yrd Mat Min Exi Min Mat Peak Influence 480 | . 326 480 . . 100 Initial 118 | . . 118 . . . Average 139 | . 135 355 . . 48 Maximum Alert Level 2 | . 1 2 . . . Low Security (%) 61 | 100 58 3 . 100 100 Level 1 35 | . 41 82 . . . Level 2 2 | . . 13 . . . Level 3 . | . . . . . . Level 4 . | . . . . . . Level 5 . | . . . . . . High Security . | . . . . . . Max Security . | . . . . . . Squads Dispatched 5 | . 3 1 . . 1 Investigation 3 | . 1 1 . . 1 Extermination . | . . . . . . Reinforcement 2 | . 2 . . . . Assault . | . . . . . . Garrison . | . . . . . . Intercept . | . . . . . . Searches Triggered . | . . . . . . Construction Impeded . | . . . . . . Haulers Reinforced . | . . . . . . Active Scanning Responses . | . . . . . . Cargo Convoy Interrupts . | . . . . . . Stealth | -11 -10 -10 -10 -9 -8 --------- Run | Yrd Mat Min Exi Min Mat Distress Signals 6 | . 3 . . . 3 Communications Jammed . | . . . . . . Distress Signals . | . . . . . . Times Spotted 61 | . 27 15 . . 19 Peak Tracking Total 6 | . 5 3 . . 6 Tactical Retreats 5 | . 5 . . . . Traps | -11 -10 -10 -10 -9 -8 ------- Run | Yrd Mat Min Exi Min Mat Traps Triggered 1 | . 1 . . . . Indirectly 1 | . 1 . . . . Trap Hack Attempts . | . . . . . . Triggered . | . . . . . . Disarmed . | . . . . . . Reprogrammed . | . . . . . . Reused . | . . . . . . Traps Extracted . | . . . . . . Installed . | . . . . . . Triggered . | . . . . . . Machines | -11 -10 -10 -10 -9 -8 ---------- Run | Yrd Mat Min Exi Min Mat Machines Disabled 6 | . 5 1 . . . Max in Single Turn 2 | . 2 . . . . Machines Repaired . | . . . . . . Machines Dismantled . | . . . . . . Machines Sabotaged . | . . . . . . Overloaded Fab Kills . | . . . . . . Hacking | -11 -10 -10 -10 -9 -8 --------- Run | Yrd Mat Min Exi Min Mat Machines Accessed 14 | . 6 1 5 . 2 Terminals 6 | . 4 . . . 2 Fabricators . | . . . . . . Repair Stations . | . . . . . . Recycling Units 2 | . 2 . . . . Scanalyzers . | . . . . . . Garrison Access . | . . . . . . Total Hacks 77 | . 16 1 50 . 10 Successful 71 | . 11 1 50 . 9 Failed 6 | . 5 . . . 1 Catastrophic . | . . . . . . Database Lockouts . | . . . . . . Manual 1 | . . . 1 . . Terminals 20 | . 10 . . . 10 Fabricators . | . . . . . . Repair Stations . | . . . . . . Recycling Units 6 | . 6 . . . . Scanalyzers . | . . . . . . Garrison Access . | . . . . . . Terminal Hacks 66 | . 6 1 50 . 9 Record 51 | . . . 49 . 2 Robot Analysis 2 | . 2 . . . . Prototype ID Bank 1 | . 1 . . . . Open Door 1 | . . 1 . . . Alert Level 2 | . . . . . 2 Unreport Threat 1 | . . . . . 1 Locate Traps 1 | . 1 . . . . Dispatch Records 1 | . . . . . 1 Transport Status 1 | . . . . . 1 Hauler Manifests 3 | . 1 . . . 2 Zone Layout 1 | . 1 . . . . Derelict Proto ID Bank 1 | . . . 1 . . Fabricator Hacks . | . . . . . . Repair Station Hacks . | . . . . . . Recycling Unit Hacks 5 | . 5 . . . . Process 2 | . 2 . . . . Report Inventory 2 | . 2 . . . . Retrieve Matter 1 | . 1 . . . . Scanalyzer . | . . . . . . Garrison Access Hacks . | . . . . . . Unauthorized Hacks . | . . . . . . Terminals . | . . . . . . Fabricators . | . . . . . . Repair Stations . | . . . . . . Recycling Units . | . . . . . . Scanalyzers . | . . . . . . Garrison Access . | . . . . . . Data Cores Recovered . | . . . . . . Used . | . . . . . . Hacking Detections 6 | . 5 . . . 1 Full Trace Events 3 | . 2 . . . 1 Feedback Events . | . . . . . . Feedback Blocked . | . . . . . . Robot Schematics Acquired . | . . . . . . Robots Built . | . . . . . . Authchips . | . . . . . . Time . | . . . . . . Total Robot Build Rating . | . . . . . . Part Schematics Acquired . | . . . . . . Parts Built . | . . . . . . Authchips . | . . . . . . Time . | . . . . . . Total Part Build Rating . | . . . . . . Parts Repaired . | . . . . . . Time . | . . . . . . Parts Recycled . | . . . . . . Recycled Matter 303 | . 303 . . . . Retrieved Matter 9 | . 9 . . . . Retrieved Components . | . . . . . . Parts Scanalyzed . | . . . . . . Part Schematics Acquired . | . . . . . . Parts Damaged . | . . . . . . Bothacking | -11 -10 -10 -10 -9 -8 ------------ Run | Yrd Mat Min Exi Min Mat Used RIF Installer . | . . . . . . Robots Hacked 1 | . . 1 . . . Non-combat . | . . . . . . Combat 1 | . . 1 . . . Robot Hacks Applied 1 | . . 1 . . . parse_system 1 | . . 1 . . . Relay Couplers Released . | . . . . . . Fabnet Peak Effective % . | . . . . . . Robots Rewired . | . . . . . . Allies Hacked . | . . . . . . Hacks Repelled . | . . . . . . Allies | -11 -10 -10 -10 -9 -8 -------- Run | Yrd Mat Min Exi Min Mat Total Allies 1 | . . 1 . . . Largest Group 1 | . . 1 . . . Highest-Rated Group 31 | . . 31 . . . Highest-Rated Ally 31 | . . 31 . . . Total Orders . | . . . . . . Ally Attacks 13 | . . 13 . . . Total Damage 121 | . . 121 . . . Kills 3 | . . 3 . . . Allies Corrupted . | . . . . . . Allies Melted . | . . . . . . Intel | -11 -10 -10 -10 -9 -8 ------- Run | Yrd Mat Min Exi Min Mat Robot Analysis Total 2 | . 2 . . . . Derelict Logs Recovered 4 | . . 3 . 1 . Drone Launches . | . . . . . . Drone Recoveries . | . . . . . . Exploration | -11 -10 -10 -10 -9 -8 ------------- Run | Yrd Mat Min Exi Min Mat Turns Passed 3818 | 72 1434 738 372 727 475 Spaces Moved 2122 | 50 660 524 303 410 175 Core 36 | 16 . . . . 20 Treads 382 | 27 355 . . . . Legs 1697 | . 305 524 303 410 155 Wheels 7 | 7 . . . . . Hover . | . . . . . . Flight . | . . . . . . Fastest Speed 50 | 50 120 120 120 120 50 Average Speed 126 | 115 141 120 120 120 115 Slowest Speed 190 | 160 160 120 120 120 190 Overloaded Moves . | . . . . . . Propulsion Burnouts . | . . . . . . Robots Hopped . | . . . . . . Cave-ins Triggered . | . . . . . . Exploration Rate (%) 56 | 5 88 94 61 71 17 Regions Visited 5 Branch Regions 3 Pre-discovered Areas 3 | . . 1 1 1 . Known Exits Taken 2 | . 1 1 . . . Unknown Exits Taken 3 | 1 . . 1 1 . Scrap Searched 2 | . . 1 . 1 . Spaces Dug 7 | . 4 3 . . . Terrain Destroyed 150 | . 34 113 . . 3 Melee 7 | . 4 3 . . . Projectile 5 | . . 2 . . 3 AOE 138 | . 30 108 . . . Terrain Rammed . | . . . . . . Walls Destroyed . | . . . . . . Machines Disabled . | . . . . . . Actions | -11 -10 -10 -10 -9 -8 --------- Run | Yrd Mat Min Exi Min Mat Total 3032 | 65 1023 590 310 644 400 Wait 640 | . 228 20 . 233 159 Move 2117 | 49 659 523 302 409 175 Hop . | . . . . . . Pick Up 33 | 7 16 6 2 . 2 Fast Attach 1 | . . . 1 . . Attach 15 | 5 3 2 . . 5 Detach . | . . . . . . Swap 18 | 2 11 2 3 . . Drop 17 | 2 10 3 1 . 1 Fire 137 | . 89 22 . . 26 Melee 30 | . 7 12 . . 11 Ram 21 | . . . . . 21 Kick 2 | . . . . 2 . Crush . | . . . . . . Escape Stasis . | . . . . . . Rewire 1 | . . . 1 . . Trap . | . . . . . . Miscellaneous . | . . . . . . Route ------- -11/Scrapyard -10/Materials (discovered 6 exits: *Mat x3 / *Min x2 / *Sub) -10/Mines (discovered 4 exits: *Mat x2 / *Exi / Sub) -10/Exiles -9/Mines -8/Materials (discovered 2 exits: Fac x2) History --------- Turn | Location | Event 19 | -11/Scrapyard | Discovered new exit (range 15) 73 | -11/Scrapyard | Entered Materials 73 | -10/Materials | Discovered new exit (range 7) 304 | -10/Materials | Build established: Mutant 424 | -10/Materials | Discovered new exit (range 11) 463 | -10/Materials | Identified exit to Materials 744 | -10/Materials | Discovered new exit (range 7) 797 | -10/Materials | Identified exit to Subcaves 820 | -10/Materials | Discovered new exit (range 8) 833 | -10/Materials | Identified exit to Mines 1021 | -10/Materials | Discovered exit to Materials (range 16) 1164 | -10/Materials | Core integrity fell below 50% 1181 | -10/Materials | Discovered exit to Materials (range 15) 1507 | -10/Materials | Entered Mines 1590 | -10/Mines | Escorted by a lone wolf Derelict 1610 | -10/Mines | Learned location of Storage (-7) 1662 | -10/Mines | Discovered exit to Materials (range 5) 1729 | -10/Mines | Found a hidden stash of uninstalled traps 1839 | -10/Mines | Discovered exit to Subcaves (range 12) 2074 | -10/Mines | Learned 2 Materials zone layouts 2078 | -10/Mines | Met a Derelict shopkeep closing up shop 2130 | -10/Mines | Discovered exit to Materials (range 16) 2137 | -10/Mines | Identified exit to Exiles 2143 | -10/Mines | Learned location of 1 exit from Materials 2245 | -10/Mines | Entered Exiles 2245 | -10/Exiles | Accompanied by 1 ally 2278 | -10/Exiles | Met 8R-AWN 2296 | -10/Exiles | Met EX-HEX 2344 | -10/Exiles | Met EX-BIN 2372 | -10/Exiles | Aligned with FarCom system 2374 | -10/Exiles | Given EX-Vault access code 2436 | -10/Exiles | Opened EX-Vault 2442 | -10/Exiles | Found Prototype Leg 2447 | -10/Exiles | Found Prototype Processor 2449 | -10/Exiles | Found Prototype Device 2449 | -10/Exiles | Identified Cloak of Protection 2456 | -10/Exiles | Identified Modified TNC 2458 | -10/Exiles | Identified Potential Leg 2489 | -10/Exiles | Warned to stay clear of 0b10 Research branches 2527 | -10/Exiles | Met EX-DEC 2532 | -10/Exiles | Learned location of Zion (-7) 2602 | -10/Exiles | Discovered new exit (range 15) 2617 | -10/Exiles | Stole two prototypes: Modified TNC, Cloak of Protection 2617 | -10/Exiles | Entered Mines 2631 | -9/Mines | Met a Derelict bent on vengeance 2758 | -9/Mines | Learned Materials terminal intel 3094 | -9/Mines | Discovered new exit (range 10) 3344 | -9/Mines | Entered Materials 3344 | -8/Materials | Evolved 4 slots: Power x1, Utility x3 3345 | -8/Materials | Identified exit to Factory 3347 | -8/Materials | Loaded intel: 12 terminal locations 3784 | -8/Materials | Core integrity fell below 50% 3812 | -8/Materials | Core integrity fell below 20% 3819 | -8/Materials | Destroyed by G-50 Soldier with Heavy Laser Last Messages --------------- Hacking Suite destroyed. Slammed into W-25 Informer. Destabilizing: Core damaged (-5). W-25 Informer destroyed. Slammed into G-47 Trooper. Destabilizing: System corrupted (+1). R-06 Scavenger collects Imp. Signal Interpreter. Slammed into G-47 Trooper. Terminal disabled. Slammed into G-47 Trooper. Destabilizing: System interference. Modified TNC temporarily disabled. K-01 Serf collects debris. Slammed into G-47 Trooper. R-06 Scavenger collects Lgt. Deuterium Engine. R-06 Scavenger collects Imp. Hover Unit. Slammed into G-47 Trooper. Destabilizing: System corrupted (+2). K-01 Serf collects debris. Slammed into G-47 Trooper. Map ----- +----------------------------------------------------+ | ???????????????# =# # """"""" #????????? | | ???????????????# # # """"""" #????????? | | ??????????#########+##### + """"""" #????????? | | ??????????# # ]#????????? | | ????####### #############????????? | | ????# % #????????????????????? | | ????# ########????????????????????? | | ????# %##??????????????????????????? | | ????# %##??????????????????????????? | | "" ## #########???????????????????? | | "" # ! #?????????????? | | " + ????????????? | | # " """ """% """ """ #?????????????? | | ???# "G" """ """ """ """ ??????????????????? | | ???# " " """ """ """ """???????????????????? | | ???# ???????????????????? | | ???# ???????????????????? | | ???# ??????????????????? | | ### ##### ###???????????????????? | | g #???# #?????????????????????? | | #######;######+#?????????????????????? | | ## ! ra #??????????????????""?? | | ## %% #??????????????????"T?? | | ## """ """%%g""#??????????????????""?? | | # """ """k gT"#??????????????????""?? | | ########### ## """ """rg%@"#?????????????????????? | | ??????????# ## %%%#?????????????????????? | | ?????????## ########+########## ?????????????? | | ?????????# T"????????Y??????? | | # w " ??????????????? | | + % %= ?????????????? | | ???########+#### % ########+### ?????????????? | | ???????????????# %#?????????????????????????????? | | ???????????????# #?????????????????????????????? | | ???????????????# #?????????????????????????????? | | ???????????????# #?????????????????????????????? | | ???????????????# #?????????????????????????????? | | ???????????????# #?????????????????????????????? | | ???????????????# #?????????????????????????????? | | ???????????????# #?????????????????????????????? | | ???????????????# #?????????????????????????????? | | ???????????????# #?????????????????????????????? | | ???????????????# #?????????????????????????????? | | ???????????????# #?????????????????????????????? | | ???????????????# ?????????????????????????????? | | ???????????????? ??????????????????????????????? | | ?????????????????????????????????????????????????? | | ??????????????????????????????????????????T??????? | | ?????????????????????????????????????????????????? | | ?????????????????????????????????????????????????? | +----------------------------------------------------+ Best States ------------- Heat Dissipation 31 Energy Generation 14 Energy Capacity 250 Matter Stores 300 Matter Capacity 300 Sight Range 16 Robot Scan Range 14 Terrain Scan Density 10 Cloak Strength 5 Core Shielding 20 Evasion (%) 55 Recoil Reduction 2 Offensive Hacking 20 Item Schematics ----------------- None Robot Schematics ------------------ None Fabricated ------------ Nothing Alien Tech Used ----------------- None Achievements -------------- None Challenges ------------ None Game ------ Seed ControlSalvageDetonator Manual? 0 Play Time 00:26:01 Cumulative 4.2 hours Start 2024.04.28 @ 10:54:12 End 2024.04.28 @ 11:16:36 Sessions 1 Manual Loads 0 Difficulty Rogue Special Mode None Game No. 18 Rogue 4 Adventurer 14 Explorer 0 Win Type - Total 0 Types 0/0/0/0/0/0/0/0/0 Lore% 13 Gallery% 13 Achievement% 13 Wizard Run 0 Options --------- Layout 1 ASCII 0 Keyboard 0 Movement Mouse Keybinds 0 Fullscreen 2 Font 24/Proggy Map View 50x35 Zoom Use 0% Tactical HUD 0 Map Filters NONE Filters NONE Steam 1 RUN: 1d2095c4-85fa-407f-bed6-0d72f8066402